fUSD/lending_fUSD_20250322
["ID","MTS","AMOUNT","RATE_DAILY","PERIOD"]
[356533191,1742626251980,-500.0,0.00047123,120]
[356533192,1742626251990,-500.0,0.00047123,120]
[356533193,1742626252001,-500.0,0.00047123,120]
[356533194,1742626252011,-1406.1,0.00047123,120]
[356533195,1742626252021,-667.48387874,0.00047123,120]
[356533196,1742626252034,-101.99612126,0.00047123,120]
[356533197,1742626252043,-279.28654339,0.00047123,120]
[356533198,1742626252809,-251.08345661,0.00047123,120]
[356533199,1742626252819,-313.80896966,0.00047123,120]
[356533200,1742626252963,-579.85103034,0.00047123,120]
[356533201,1742626252972,-694.47,0.00047123,120]
[356533202,1742626252981,-805.66,0.00047123,120]
[356533203,1742626252990,-534.53,0.00047123,120]
[356533204,1742626252999,-500.0,0.00047123,120]
[356533205,1742626253008,-656.72,0.00047123,120]
[356533206,1742626253017,-906.62,0.00047123,120]
[356533207,1742626253026,-500.0,0.00047123,120]
[356533208,1742626253035,-500.0,0.00047123,120]
[356533209,1742626253044,-1224.27,0.00047123,120]
[356533210,1742626253053,-500.0,0.00047123,120]
[356533211,1742626253063,-880.17,0.00047123,120]
[356533212,1742626253072,-500.0,0.00047123,120]
[356533213,1742626253082,-2070.0,0.00047123,120]
[356533214,1742626253092,-500.0,0.00047123,120]
[356533215,1742626253102,-500.0,0.00047123,120]
[356533216,1742626253111,-777.1,0.00047123,120]
[356533217,1742626253120,-569.12,0.00047123,120]
[356533218,1742626253130,-500.0,0.00047123,120]
[356533219,1742626253140,-500.0,0.00047123,120]
[356533220,1742626253149,-1098.25,0.00047123,120]
[356533221,1742626253159,-500.0,0.00047123,120]
[356533222,1742626253168,-566.63,0.00047123,120]
[356533223,1742626253178,-911.39,0.00047123,120]
[356533224,1742626253187,-13.53502994,0.00047123,120]
[356533225,1742626253200,-486.46497006,0.00047123,120]
[356533226,1742626253209,-516.09,0.00047123,120]
[356533227,1742626253219,-659.59,0.00047123,120]
[356533228,1742626253229,-316.82,0.00047123,120]
[356533229,1742626253238,-500.0,0.00047123,120]
[356533230,1742626253247,-1024.65,0.00047123,120]
[356533231,1742626253256,-500.0,0.00047123,120]
[356533232,1742626253265,-836.61,0.00047123,120]
[356533233,1742626253275,-850.98,0.00047123,120]
[356533234,1742626253284,-1340.73,0.00047123,120]
[356533235,1742626253293,-500.0,0.00047123,120]
[356533236,1742626253302,-742.19,0.00047123,120]
[356533237,1742626253312,-500.0,0.00047123,120]
[356533238,1742626253321,-500.0,0.00047123,120]
[356533239,1742626253331,-501.45,0.00047123,120]
[356533240,1742626253340,-168.64916642,0.00047123,120]
[356533241,1742626253352,-1316.88083358,0.00047123,120]
[356533242,1742626253362,-516.61,0.00047123,120]
[356533243,1742626253371,-1662.57,0.00047123,120]
[356533244,1742626253380,-500.0,0.00047123,120]
[356533245,1742626253390,-500.0,0.00047123,120]
[356533246,1742626253399,-500.0,0.00047123,120]
[356533247,1742626253408,-1126.29,0.00047123,120]
[356533248,1742626253418,-500.0,0.00047123,120]
[356533249,1742626253427,-1189.39,0.00047123,120]
[356533250,1742626253436,-500.0,0.00047123,120]
[356533251,1742626253447,-517.7,0.00047123,120]
[356533252,1742626253456,-947.31,0.00047123,120]
[356533253,1742626253468,-500.0,0.00047123,120]
[356533254,1742626253479,-500.0,0.00047123,120]
[356533255,1742626253488,-516.86,0.00047123,120]
[356533256,1742626253497,-500.0,0.00047123,120]
[356533257,1742626253506,-1201.61,0.00047123,120]
[356533258,1742626253516,-172.30467385,0.00047123,120]
[356533259,1742626253528,-255.25039158,0.00047123,120]
[356533260,1742626253539,-72.44493457,0.00047123,120]
[356533261,1742626253551,-251.03495893,0.00047123,120]
[356533262,1742626253560,-609.99,0.00047123,120]
[356533263,1742626253570,-613.45,0.00047123,120]
[356533264,1742626253579,-500.0,0.00047123,120]
[356533265,1742626253589,-582.4,0.00047123,120]
[356533266,1742626253598,-500.0,0.00047123,120]
[356533267,1742626253607,-500.0,0.00047123,120]
[356533268,1742626253616,-500.0,0.00047123,120]
[356533269,1742626253625,-7405.85131048,0.00047123,120]
[356533270,1742626253638,-23218.64868952,0.00047123,120]
[356533271,1742626253647,-889.0,0.00047123,120]
[356533272,1742626253656,-858.09,0.00047123,120]
[356533273,1742626253666,-500.0,0.00047123,120]
[356533274,1742626253676,-820.75,0.00047123,120]
[356533275,1742626253686,-559.88,0.00047123,120]
[356533276,1742626253695,-897.87,0.00047123,120]
[356533277,1742626253705,-633.11,0.00047123,120]
[356533278,1742626253714,-500.0,0.00047123,120]
[356533279,1742626253724,-500.0,0.00047123,120]
[356533280,1742626253734,-854.22,0.00047123,120]
[356533281,1742626253744,-500.0,0.00047123,120]
[356533282,1742626253755,-500.0,0.00047123,120]
[356533283,1742626253764,-646.85,0.00047123,120]
[356533284,1742626253773,-561.38,0.00047123,120]
[356533285,1742626253783,-834.05,0.00047123,120]
[356533286,1742626253792,-1148.55,0.00047123,120]
[356533287,1742626253801,-500.0,0.00047123,120]
[356533288,1742626253810,-550.03,0.00047123,120]
[356533289,1742626253819,-500.0,0.00047123,120]
[356533290,1742626253828,-721.24,0.00047123,120]
[356533291,1742626253837,-603.48,0.00047123,120]
[356533292,1742626253847,-5563.21,0.00047123,2]
[356533293,1742626253856,-2833.94,0.00047123,120]
[356533294,1742626253866,-500.0,0.00047123,120]
[356533295,1742626253876,-873.02,0.00047123,120]
[356533296,1742626253886,-500.0,0.00047123,120]
[356533297,1742626253896,-501.63,0.00047123,120]
[356533298,1742626253905,-520.47,0.00047123,120]
[356533299,1742626253915,-1358.0,0.00047123,120]
[356533300,1742626253925,-1322.76,0.00047123,120]
[356533301,1742626253934,-824.63,0.00047123,120]
[356533302,1742626253943,-2044.02,0.00047123,120]
[356533303,1742626253952,-661.76,0.00047123,120]
[356533304,1742626253962,-955.66,0.00047123,120]
[356533305,1742626253971,-511.74,0.00047123,120]
[356533306,1742626253980,-526.59017455,0.00047123,120]
[356533307,1742626253990,-1421.9,0.00047123,120]
[356533308,1742626253999,-500.0,0.00047123,120]
[356533309,1742626254009,-1788.03,0.00047123,120]
[356533310,1742626254018,-128.75847925,0.00047123,120]
[356533311,1742626254031,-371.24152075,0.00047123,120]
[356533312,1742626254040,-106.30089309,0.00047123,120]
[356533313,1742626255168,-370.60876754,0.00047123,120]
[356533314,1742626255341,-23.09033937,0.00047123,120]
[356533315,1742626255352,-419.68868712,0.00047123,120]
[356533316,1742626255363,-99.24131288,0.00047123,120]
[356533317,1742626255373,-1265.68,0.00047123,120]
[356533318,1742626255382,-566.57,0.00047123,120]
[356533319,1742626255391,-500.0,0.00047123,120]
[356533320,1742626255401,-2517.65,0.00047123,120]
[356533321,1742626255410,-839.72,0.00047123,120]
[356533322,1742626255419,-500.0,0.00047123,120]
[356533323,1742626255428,-500.0,0.00047123,120]
[356533324,1742626255437,-1125.59,0.00047123,120]
[356533325,1742626255447,-500.0,0.00047123,120]
[356533326,1742626255456,-467.65692876,0.00047123,30]
[356533327,1742626255467,-1642.34307124,0.00047123,30]
[356533328,1742626255476,-500.0,0.00047123,120]
[356533329,1742626255487,-500.0,0.00047123,120]
[356533330,1742626255499,-1127.81,0.00047123,120]
[356533331,1742626255508,-500.0,0.00047123,120]
[356533332,1742626255518,-1830.71,0.00047123,120]
[356533333,1742626255527,-2100.63692876,0.00047123,120]
[356533334,1742626255539,-726.92307124,0.00047123,120]
[356533335,1742626255549,-493.392965,0.00047123,120]
[356533336,1742626255560,-302.2518415,0.00047123,120]
[356533337,1742626255571,-231.3451935,0.00047123,120]
[356533338,1742626255581,-91.5464065,0.00047123,120]
[356533339,1742626255593,-1011.4635935,0.00047123,120]
[356533340,1742626255602,-426.96648859,0.00047123,120]
[356533378,1742627431758,-155.62,0.00026849,2]
[356533379,1742627431768,-258.82409384,0.00027712,2]
[356533381,1742627431777,-89.02947206,0.00027812,2]
[356533384,1742627431790,-60.97052794,0.00027812,2]
[356533385,1742627431800,-150.0,0.00029534,2]
[356533386,1742627431812,-99.33947206,0.00029534,2]
[356533387,1742627431832,-250.66052794,0.00029534,2]
[356533388,1742627431842,-150.0,0.00029534,2]
[356533389,1742627431852,-49.33947206,0.000309,2]
[356533390,1742627432018,-101.72687294,0.000309,2]
[356533391,1742627432032,-250.0,0.00031,2]
[356533392,1742627432042,-300.0,0.00033,2]
[356533393,1742627432054,-155.62,0.00034716,2]
[356533394,1742627432063,-233.87,0.00036351,2]
[356533395,1742627432074,-258.82409383,0.00036621,2]
[356533396,1742627432084,-151.06634499,0.00038687,2]
[356533397,1742627432094,-155.62,0.00042583,2]
[356533398,1742627432103,-309.25,0.00043453,2]
[356533399,1742627432113,-396.33,0.00044874,2]
[356533400,1742627432123,-396.33,0.00044969,2]
[356533401,1742627432133,-396.33,0.00045063,2]
[356533402,1742627432143,-396.33,0.00045158,2]
[356533403,1742627432153,-396.33,0.00045252,2]
[356533404,1742627432163,-256.49,0.00045261,2]
[356533405,1742627432173,-396.33,0.00045347,2]
[356533406,1742627432182,-396.33,0.00045441,2]
[356533407,1742627432192,-550.0,0.00045529,5]
[356533408,1742627432202,-258.82409383,0.0004553,2]
[356533409,1742627432212,-396.33,0.00045536,2]
[356533410,1742627432222,-300.0,0.0004563,4]
[356533411,1742627432232,-396.33,0.0004563,2]
[356533412,1742627432242,-1000.0,0.00045639,2]
[356533413,1742627432252,-3571.00567169,0.00045669,2]
[356533472,1742627437641,-173.93,0.00044795,2]
[356533474,1742627437651,-1349.47912736,0.00045669,2]
[356533479,1742627437692,-1843.63520095,0.00045669,2]
[356533480,1742627437701,-191.1296,0.00045709,4]
[356533481,1742627437711,-150.99,0.00045709,2]
[356533482,1742627437720,-309.25,0.00045717,2]
[356533483,1742627437729,-396.33,0.00045725,2]
[356533484,1742627437738,-200.0,0.00045782,2]
[356533485,1742627437748,-396.33,0.00045819,2]
[356533486,1742627437757,-180.1,0.000459,120]
[356533487,1742627437766,-208.21483428,0.000459,10]
[356533488,1742627437776,-396.33,0.00045914,2]
[356533489,1742627437785,-153.06,0.00046,39]
[356533490,1742627437793,-153.06,0.00046,39]
[356533491,1742627437802,-396.33,0.00046008,2]
[356533492,1742627437811,-151.0,0.00046101,2]
[356533493,1742627437820,-396.33,0.00046103,2]
[356533494,1742627437830,-396.33,0.00046197,2]
[356533495,1742627437839,-396.33,0.00046291,2]
[356533496,1742627437848,-396.33,0.00046386,2]
[356533497,1742627437858,-151.06634499,0.00046473,2]
[356533498,1742627437867,-494.04689054,0.00046475,18]
[356533499,1742627437877,-150.37421475,0.00046475,15]
[356533500,1742627437886,-206.57088831,0.00046475,15]
[356533501,1742627437895,-349.98369066,0.00046475,2]
[356533502,1742627437904,-156.72955208,0.00046475,120]
[356533503,1742627437913,-396.33,0.0004648,2]
[356533504,1742627437923,-150.0,0.00046548,30]
[356533505,1742627437933,-150.0,0.00046548,30]
[356533506,1742627437942,-150.0,0.00046548,30]
[356533507,1742627437951,-156.72955192,0.00046556,120]
[356533508,1742627437960,-792.00699159,0.00046565,3]
[356533509,1742627437972,-606.4717904,0.00046565,3]
[356533510,1742627437984,-442.20931429,0.00046565,3]
[356533511,1742627438070,-641.17075531,0.00046565,3]
[356533512,1742627438093,-2778.04521115,0.00046565,3]
[356533541,1742627444452,-971.4300002,0.00046565,3]
[356533542,1742627444471,-43609.66413308,0.00046565,3]
[356533543,1742627445941,-521.10496935,0.00046565,3]
[356533544,1742627446111,-1543.49445055,0.00046565,3]
[356533545,1742627446123,-5148.41904232,0.00046565,3]
[356533546,1742627446195,-527.077714,0.00046565,3]
[356533547,1742627446206,-2180.06465565,0.00046565,3]
[356533548,1742627446217,-3457.78837185,0.00046565,3]
[356533549,1742627446228,-44985.59558026,0.00046565,3]
[356533550,1742627446237,-502.08937132,0.00046573,2]
[356533551,1742627446247,-500.0,0.00046574,120]
[356533552,1742627446256,-500.0,0.00046574,120]
[356533553,1742627446265,-500.0,0.00046574,120]
[356533554,1742627446275,-500.0,0.00046574,120]
[356533555,1742627446284,-209.90047594,0.00046574,120]
[356533556,1742627446293,-500.0,0.00046574,120]
[356533557,1742627446302,-189.717,0.00046574,77]
[356533558,1742627446311,-281.8475,0.00046574,120]
[356533559,1742627446320,-396.33,0.00046575,2]
[356533560,1742627446330,-1121.319451,0.00046575,120]
[356533561,1742627446339,-909.365303,0.00046575,120]
[356533562,1742627446347,-159.505277,0.00046575,120]
[356533563,1742627446356,-158.830351,0.00046575,120]
[356533564,1742627446365,-932.83,0.00046575,120]
[356533565,1742627446375,-500.0,0.00046575,120]
[356533566,1742627446384,-500.0,0.00046575,120]
[356533567,1742627446393,-500.0,0.00046575,120]
[356533568,1742627446402,-500.0,0.00046575,120]
[356533569,1742627446411,-500.0,0.00046575,120]
[356533570,1742627446421,-500.0,0.00046575,120]
[356533571,1742627446430,-500.0,0.00046575,120]
[356533572,1742627446440,-500.0,0.00046575,120]
[356533573,1742627446449,-1788.31,0.00046575,120]
[356533574,1742627446458,-500.0,0.00046575,120]
[356533575,1742627446467,-672.07,0.00046575,120]
[356533576,1742627446477,-500.0,0.00046575,120]
[356533577,1742627446487,-500.0,0.00046575,120]
[356533578,1742627446496,-500.0,0.00046575,120]
[356533579,1742627446505,-500.0,0.00046575,120]
[356533580,1742627446514,-293.40022074,0.00046575,120]
[356533581,1742627446523,-500.0,0.00046575,120]
[356533582,1742627446531,-548.9920695,0.00046575,120]
[356533583,1742627446540,-500.0,0.00046575,120]
[356533584,1742627446549,-500.0,0.00046575,120]
[356533585,1742627446558,-500.0,0.00046575,120]
[356533586,1742627446567,-505.32,0.00046575,120]
[356533587,1742627446576,-500.0,0.00046575,120]
[356533588,1742627446585,-500.0,0.00046575,120]
[356533589,1742627446594,-549.2994015,0.00046575,120]
[356533590,1742627446602,-360.76,0.00046575,120]
[356533591,1742627446611,-500.0,0.00046575,120]
[356533592,1742627446621,-702.64,0.00046575,120]
[356533593,1742627446630,-547.3,0.00046575,120]
[356533594,1742627446639,-500.0,0.00046575,120]
[356533595,1742627446648,-500.0,0.00046575,120]
[356533596,1742627446658,-723.69,0.00046575,120]
[356533597,1742627446668,-823.64,0.00046575,120]
[356533598,1742627446678,-605.29,0.00046575,120]
[356533599,1742627446688,-500.0,0.00046575,120]
[356533600,1742627446697,-500.0,0.00046575,120]
[356533601,1742627446707,-633.59,0.00046575,120]
[356533602,1742627446716,-647.49,0.00046575,120]
[356533603,1742627446726,-649.15,0.00046575,120]
[356533604,1742627446735,-500.0,0.00046575,120]
[356533605,1742627446745,-500.0,0.00046575,120]
[356533606,1742627446754,-500.0,0.00046575,120]
[356533607,1742627446763,-512.35,0.00046575,120]
[356533608,1742627446772,-500.0,0.00046575,120]
[356533609,1742627446782,-565.78,0.00046575,120]
[356533610,1742627446791,-500.0,0.00046575,120]
[356533611,1742627446800,-500.0,0.00046575,120]
[356533612,1742627446810,-500.0,0.00046575,120]
[356533613,1742627446820,-500.0,0.00046575,120]
[356533614,1742627446829,-500.0,0.00046575,120]
[356533615,1742627446839,-691.61,0.00046575,120]
[356533616,1742627446848,-500.0,0.00046575,120]
[356533617,1742627446857,-692.5,0.00046575,120]
[356533618,1742627446866,-500.0,0.00046575,120]
[356533619,1742627446875,-500.0,0.00046575,120]
[356533620,1742627446895,-500.0,0.00046575,120]
[356533621,1742627446904,-500.0,0.00046575,120]
[356533622,1742627446914,-500.0,0.00046575,120]
[356533623,1742627446924,-1115.48,0.00046575,120]
[356533624,1742627446934,-500.0,0.00046575,120]
[356533625,1742627446943,-2518.03,0.00046575,120]
[356533626,1742627446954,-897.7,0.00046575,120]
[356533627,1742627446963,-500.0,0.00046575,120]
[356533628,1742627446972,-500.0,0.00046575,120]
[356533629,1742627446982,-603.06,0.00046575,120]
[356533630,1742627446992,-618.89,0.00046575,120]
[356533631,1742627447001,-801.22,0.00046575,120]
[356533632,1742627447011,-500.0,0.00046575,120]
[356533633,1742627447021,-512.75107532,0.00046575,120]
[356533634,1742627447035,-500.0,0.00046575,120]
[356533635,1742627447045,-500.0,0.00046575,120]
[356533636,1742627447055,-500.0,0.00046575,120]
[356533637,1742627447064,-544.19278595,0.00046575,120]
[356533638,1742627447075,-500.0,0.00046575,120]
[356533639,1742627447084,-500.0,0.00046575,120]
[356533640,1742627447092,-500.0,0.00046575,120]
[356533641,1742627447102,-518.41,0.00046575,120]
[356533642,1742627447113,-500.0,0.00046575,120]
[356533643,1742627447122,-500.0,0.00046575,120]
[356533644,1742627447132,-1012.7,0.00046575,120]
[356533645,1742627447142,-500.0,0.00046575,120]
[356533646,1742627447151,-1274.1,0.00046575,7]
[356533647,1742627447162,-500.0,0.00046575,120]
[356533648,1742627447172,-500.0,0.00046575,120]
[356533649,1742627447182,-726.24,0.00046575,120]
[356533650,1742627447193,-500.0,0.00046575,120]
[356533651,1742627447203,-500.0,0.00046575,120]
[356533652,1742627447213,-500.0,0.00046575,120]
[356533653,1742627447224,-500.0,0.00046575,120]
[356533654,1742627447234,-500.0,0.00046575,120]
[356533655,1742627447244,-704.18854786,0.00046575,120]
[356533659,1742627863609,240.20853242,0.00015423,2]
[356533660,1742628308476,287.79146758,0.00012,2]
[356533661,1742628308514,140347.77841117,0.00012,2]
[356533662,1742628319929,1215.04522472,9e-05,2]
[356533663,1742628336299,4549.31752529,8e-05,2]
[356533683,1742628361641,7293.74893223,8e-05,2]
[356533684,1742628410844,18315.64716693,0.00025,90]
[356533685,1742628425842,930.8197914,9.14e-05,2]
[356533689,1742628444511,178.74569995,0.0001,2]
[356533690,1742628471713,2623.85616325,0.0001,2]
[356533691,1742628475568,306961.13448853,0.0001,2]
[356533692,1742628481739,209.62099894,9.5e-05,2]
[356533693,1742628486418,150.56174503,0.0001,2]
[356533695,1742628507831,2578.58046455,9.828e-05,2]
[356533696,1742628509299,215.33068013,0.0001,2]
[356533711,1742628614308,443.0,0.00031387,120]
[356533716,1742628632173,-4717.78054886,0.000199,3]
[356533717,1742628632182,-350.0,0.0001995,2]
[356533718,1742628632191,-6653.0,0.0002,2]
[356533719,1742628632200,-350.0,0.0002189,2]
[356533720,1742628632211,-350.0,0.0002381,2]
[356533721,1742628632221,-157.12,0.00026849,2]
[356533722,1742628632229,-208.21483428,0.000273,4]
[356533723,1742628632239,-251.82973748,0.00028499,2]
[356533724,1742628632248,-150.0,0.00029999,2]
[356533725,1742628632257,-3468.86441245,0.0003,120]
[356533726,1742628632266,-48921.0712116,0.0003,2]
[356533727,1742628632275,-242.7154,0.00030888,7]
[356533728,1742628632285,-250.0,0.00031,2]
[356533729,1742628632294,-300.0,0.00033,2]
[356533730,1742628632303,-16136.14298707,0.00035,2]
[356533731,1742628632312,-2184.4388,0.00038888,30]
[356533732,1742628632322,-297.84,0.00043326,2]
[356533733,1742628632331,-945.68,0.0004409,2]
[356533734,1742628632340,-157.12,0.00045205,2]
[356533735,1742628632349,-282.81,0.00045244,2]
[356533736,1742628632359,-152.15,0.00045348,2]
[356533738,1742628632368,-152.53,0.00045456,2]
[356533740,1742628632377,-1000.0,0.00045512,2]
[356533742,1742628632387,-297.84,0.0004559,2]
[356533744,1742628632396,-150.0,0.00045611,7]
[356533746,1742628632405,-23900.0,0.00045656,2]
[356533748,1742628632415,-8036.70000001,0.0004587,2]
[356533750,1742628632424,-58230.04793463,0.0004588,2]
[356533752,1742628632433,-202.23313938,0.000459,15]
[356533754,1742628632443,-5348.04874064,0.00046,120]
[356533755,1742628632452,-153.05,0.00046,39]
[356533757,1742628632461,-153.05,0.00046,39]
[356533758,1742628632471,-152.53,0.00046062,2]
[356533760,1742628632480,-517.803,0.00046106,2]
[356533761,1742628632490,-152.524,0.00046106,2]
[356533762,1742628632499,-1161.002,0.00046106,2]
[356533763,1742628632508,-202.23313935,0.00046196,15]
[356533764,1742628632517,-150.0,0.00046238,2]
[356533765,1742628632526,-982.68880711,0.00046275,30]
[356533766,1742628632534,-200.0,0.00046336,30]
[356533767,1742628632544,-152.919,0.00046336,76]
[356533768,1742628632553,-210.937,0.00046465,2]
[356533769,1742628632562,-158.1045,0.00046465,2]
[356533770,1742628632571,-461.11043118,0.00046475,18]
[356533771,1742628632580,-202.23313935,0.00046493,15]
[356533772,1742628632594,-500.0,0.00046499,120]
[356533773,1742628632603,-500.0,0.00046499,120]
[356533774,1742628632612,-500.0,0.00046499,120]
[356533775,1742628632621,-500.0,0.00046499,120]
[356533776,1742628632632,-500.0,0.00046499,120]
[356533777,1742628632641,-500.0,0.00046499,120]
[356533778,1742628632650,-500.0,0.00046499,120]
[356533779,1742628632659,-610.50205159,0.00046499,120]
[356533780,1742628632670,-5000.0,0.000465,120]
[356533781,1742628632680,-969.15,0.000465,120]
[356533782,1742628632690,-150.0,0.00046548,30]
[356533783,1742628632699,-150.0,0.00046548,30]
[356533784,1742628632709,-150.0,0.00046548,30]
[356533785,1742628632719,-2947.95,0.00046549,31]
[356533786,1742628632728,-760.31,0.00046564,120]
[356533787,1742628632739,-210057.283236,0.00046565,3]
[356533788,1742628632749,-3488.44285645,0.00046565,3]
[356533789,1742628632759,-160.02,0.00046565,2]
[356533790,1742628632768,-1392.16838634,0.00046574,60]
[356533791,1742628632777,-278.9125,0.00046574,120]
[356533792,1742628632786,-445.01069832,0.00046575,120]
[356533793,1742628632795,-300.0,0.00046575,30]
[356533794,1742628632804,-177.36729907,0.00046575,120]
[356533795,1742628632813,-1069.0,0.00046575,120]
[356533796,1742628632822,-500.0,0.00046575,120]
[356533797,1742628632831,-500.0,0.00046575,120]
[356533798,1742628632840,-500.0,0.00046575,120]
[356533799,1742628632849,-500.0,0.00046575,120]
[356533800,1742628632859,-2413.11,0.00046575,120]
[356533801,1742628632868,-500.0,0.00046575,120]
[356533802,1742628632876,-663.65,0.00046575,120]
[356533803,1742628632886,-502.35213655,0.00046575,120]
[356533804,1742628632895,-500.0,0.00046575,120]
[356533805,1742628632904,-500.0,0.00046575,120]
[356533806,1742628632913,-500.0,0.00046575,120]
[356533807,1742628632922,-500.0,0.00046575,120]
[356533808,1742628632932,-500.0,0.00046575,120]
[356533809,1742628632941,-500.0,0.00046575,120]
[356533810,1742628632951,-500.0,0.00046575,120]
[356533811,1742628632960,-500.0,0.00046575,120]
[356533812,1742628633204,-500.0,0.00046575,120]
[356533813,1742628633215,-970.5,0.00046575,120]
[356533814,1742628633224,-500.0,0.00046575,120]
[356533815,1742628633233,-679.97,0.00046575,120]
[356533816,1742628633243,-500.0,0.00046575,120]
[356533817,1742628633252,-500.0,0.00046575,120]
[356533818,1742628633261,-500.0,0.00046575,120]
[356533819,1742628633270,-300.0,0.00046575,120]
[356533820,1742628633280,-500.0,0.00046575,120]
[356533821,1742628633289,-551.51386692,0.00046575,120]
[356533822,1742628633298,-1382.68,0.00046575,10]
[356533823,1742628633308,-500.0,0.00046575,120]
[356533824,1742628633317,-500.0,0.00046575,120]
[356533825,1742628633326,-521.73,0.00046575,120]
[356533826,1742628633336,-500.0,0.00046575,120]
[356533827,1742628633345,-500.0,0.00046575,120]
[356533828,1742628633355,-500.0,0.00046575,120]
[356533829,1742628633364,-500.0,0.00046575,120]
[356533830,1742628633373,-960.97,0.00046575,120]
[356533831,1742628633382,-582.76992477,0.00046575,120]
[356533832,1742628633391,-673.3,0.00046575,120]
[356533833,1742628633401,-151.647293,0.00046575,14]
[356533834,1742628633410,-500.0,0.00046575,120]
[356533835,1742628633419,-500.0,0.00046575,120]
[356533836,1742628633429,-500.0,0.00046575,120]
[356533837,1742628633439,-500.0,0.00046575,120]
[356533838,1742628633449,-500.0,0.00046575,120]
[356533839,1742628633459,-500.0,0.00046575,120]
[356533840,1742628633468,-500.0,0.00046575,120]
[356533841,1742628633477,-500.0,0.00046575,120]
[356533842,1742628633486,-500.0,0.00046575,120]
[356533843,1742628633496,-500.0,0.00046575,120]
[356533844,1742628633505,-500.0,0.00046575,120]
[356533845,1742628633514,-744.61,0.00046575,120]
[356533846,1742628633523,-500.0,0.00046575,120]
[356533847,1742628633532,-500.0,0.00046575,120]
[356533848,1742628633541,-500.0,0.00046575,120]
[356533849,1742628633551,-1157.41,0.00046575,120]
[356533850,1742628633560,-500.0,0.00046575,120]
[356533851,1742628633569,-528.05,0.00046575,120]
[356533852,1742628633579,-500.0,0.00046575,120]
[356533853,1742628633589,-500.0,0.00046575,120]
[356533854,1742628633599,-500.0,0.00046575,120]
[356533855,1742628633610,-500.0,0.00046575,120]
[356533856,1742628633619,-500.0,0.00046575,120]
[356533857,1742628633628,-500.0,0.00046575,120]
[356533858,1742628633639,-500.0,0.00046575,120]
[356533859,1742628633649,-500.0,0.00046575,120]
[356533860,1742628633658,-1188.25,0.00046575,120]
[356533861,1742628633667,-500.0,0.00046575,60]
[356533862,1742628633676,-245.49,0.00046575,7]
[356533863,1742628633686,-500.0,0.00046575,120]
[356533864,1742628633696,-500.0,0.00046575,120]
[356533865,1742628633705,-500.0,0.00046575,120]
[356533866,1742628633714,-666.0,0.00046575,120]
[356533867,1742628633723,-500.0,0.00046575,120]
[356533868,1742628633733,-631.09,0.00046575,120]
[356533869,1742628633742,-840.92,0.00046575,120]
[356533870,1742628633751,-500.0,0.00046575,120]
[356533871,1742628633759,-757.42,0.00046575,120]
[356533872,1742628633768,-500.0,0.00046575,120]
[356533873,1742628633778,-836.2,0.00046575,120]
[356533874,1742628633787,-723.83,0.00046575,120]
[356533875,1742628633797,-621.12,0.00046575,120]
[356533876,1742628633806,-500.0,0.00046575,120]